[Event "1st SOA-GM Festival 2024"]
[Site "Bhubaneswar"]
[Date "2024.02.01"]
[Round "7.6"]
[White "Goutham Krishna H"]
[Black "Neelash Saha"]
[Result "1/2-1/2"]
[ECO "E61"]
[WhiteElo "2288"]
[BlackElo "2446"]
[Annotator "ChessBase"]
[PlyCount "60"]
[EventDate "2024.02.01"]
[EventType "swiss"]
[EventCountry "IND"]
[SourceTitle "playchess.com"]
[Source "ChessBase"]
[SourceQuality "1"]
[TimeControl "5400+30"]

1. d4 {[%emt 0:00:03]} Nf6 {[%emt 0:01:44]} 2. Nf3 {[%emt 0:00:12]} g6 {[%emt 0:00:35]} 3. c4 {[%emt 0:00:11]} Bg7 {[%emt 0:00:04]} 4. Nc3 {[%emt 0:00:10]} d6 {[%emt 0:00:04]} 5. Bf4 {[%emt 0:00:45]} O-O {[%emt 0:00:51]} 6. h3 {[%emt 0:00:13]} Nbd7 {[%emt 0:00:11]} 7. e3 {[%emt 0:00:19]} b6 {[%emt 0:00:33]} 8. Be2 {[%emt 0:01:39]} Bb7 {[%emt 0:00:05]} 9. Qc2 {[%emt 0:00:04]} Qe8 {[%emt 0:00:54]} 10. O-O {[%emt 0:00:09]} e5 {[%emt 0:00:14]} 11. Bh2 {[%emt 0:01:27]} Qe7 {[%emt 0:01:27]} 12. Rfd1 {[%emt 0:01:32]} exd4 {[%emt 0:03:46]} 13. exd4 {[%emt 0:00:19]} Rfe8 {[%emt 0:00:04]} 14. d5 {[%emt 0:03:54]} Ne4 {[%emt 0:00:55]} 15. Nb5 {[%emt 0:03:52]} Ndc5 {[%emt 0:01:47]} 16. Bf1 {[%emt 0:03:54]} a6 {[%emt 0:00:55]} 17. Nbd4 {[%emt 0:00:09]} Ng5 {[%emt 0:00:05]} 18. Rac1 {[%emt 0:24:12]} Nxf3+ {[%emt 0:01:08]} 19. Nxf3 {[%emt 0:00:01]} a5 {[%emt 0:02:05]} 20. b3 {[%emt 0:10:10]} Qf6 {[%emt 0:03:22]} 21. Nd4 {[%emt 0:04:45]} Re7 {[%emt 0:04:57]} 22. a3 {[%emt 0:00:25]} Bh6 {[%emt 0:04:22]} 23. Rb1 {[%emt 0:01:42]} Ne4 {[%emt 0:00:38]} 24. Rd3 {[%emt 0:00:39]} Nc5 {[%emt 0:06:38]} 25. Rdd1 {[%emt 0:00:03]} Ne4 {[%emt 0:01:15]} 26. Rd3 {[%emt 0:00:17]} Nc5 {[%emt 0:00:43]} 27. Rdd1 {[%emt 0:00:12]} Ne4 {[%emt 0:00:07]} 28. Rd3 {[%emt 0:00:05]} Nc5 {[%emt 0:00:03]} 29. Rdd1 {[%emt 0:00:04]} Ne4 {[%emt 0:00:04]} 30. Rd3 {[%emt 0:00:05]} Nc5 {[%emt 0:00:03]} 1/2-1/2

[Event "1st SOA-GM Festival 2024"]
[Site "Bhubaneswar"]
[Date "2024.02.01"]
[Round "7.7"]
[White "Sammed Jaykumar, Shete"]
[Black "Panda Sambit"]
[Result "0-1"]
[ECO "B12"]
[WhiteElo "2441"]
[BlackElo "2404"]
[Annotator "ChessBase"]
[PlyCount "80"]
[EventDate "2024.02.01"]
[EventType "swiss"]
[EventCountry "IND"]
[SourceTitle "playchess.com"]
[Source "ChessBase"]
[SourceQuality "1"]
[TimeControl "5400+30"]

1. e4 {[%emt 0:00:02]} c6 {[%emt 0:00:35]} 2. d4 {[%emt 0:00:07]} d5 {[%emt 0:00:05]} 3. e5 {[%emt 0:00:04]} Bf5 {[%emt 0:00:05]} 4. Nf3 {[%emt 0:01:02]} e6 {[%emt 0:00:08]} 5. Be2 {[%emt 0:00:07]} c5 {[%emt 0:00:04]} 6. c3 {[%emt 0:00:24]} Nc6 {[%emt 0:00:07]} 7. O-O {[%emt 0:00:31]} Bg6 {[%emt 0:00:20]} 8. a3 {[%emt 0:12:47]} Be7 {[%emt 0:02:31]} 9. dxc5 {[%emt 0:07:20]} Bxc5 {[%emt 0:00:48]} 10. b4 {[%emt 0:01:51]} Bb6 {[%emt 0:00:10]} 11. Bb2 {[%emt 0:04:16]} Nh6 {[%emt 0:21:16]} 12. c4 {[%emt 0:03:24]} O-O {[%emt 0:11:48]} 13. c5 {[%emt 0:05:16]} Bc7 {[%emt 0:00:04]} 14. b5 {[%emt 0:00:06]} Nb8 {[%emt 0:00:12]} 15. Nbd2 {[%emt 0:03:37]} Nd7 {[%emt 0:02:47]} 16. c6 {[%emt 0:00:57]} bxc6 {[%emt 0:00:06]} 17. bxc6 {[%emt 0:00:04]} Nc5 {[%emt 0:00:09]} 18. Bd4 {[%emt 0:04:35]} Ne4 {[%emt 0:00:41]} 19. Ba6 {[%emt 0:01:33]} Nf5 {[%emt 0:00:16]} 20. Bb7 {[%emt 0:08:23]} Bh5 {[%emt 0:12:43]} 21. Qa4 {[%emt 0:03:54]} Nxd2 {[%emt 0:08:36]} 22. Nxd2 {[%emt 0:00:04]} Qh4 {[%emt 0:00:50]} 23. Bxa8 {[%emt 0:00:18]} Nxd4 {[%emt 0:03:08]} 24. Kh1 {[%emt 0:08:21]} Bxe5 {[%emt 0:08:06]} 25. g3 {[%emt 0:00:05]} Qe4+ {[%emt 0:03:02]} 26. f3 {[%emt 0:00:26]} Qe2 {[%emt 0:01:08]} 27. Qd1 {[%emt 0:01:05]} Qxd1 {[%emt 0:00:08]} 28. Raxd1 {[%emt 0:00:22]} Rxa8 {[%emt 0:00:08]} 29. g4 {[%emt 0:01:52]} Bg6 {[%emt 0:00:02]} 30. f4 {[%emt 0:00:08]} Bd6 {[%emt 0:01:12]} 31. f5 {[%emt 0:02:59]} exf5 {[%emt 0:00:24]} 32. Nb1 {[%emt 0:00:12]} fxg4 {[%emt 0:03:20]} 33. Rxd4 {[%emt 0:00:15]} Be4+ {[%emt 0:00:06]} 34. Rxe4 {[%emt 0:00:04]} dxe4 {[%emt 0:00:02]} 35. Rd1 {[%emt 0:00:58]} Be5 {[%emt 0:00:43]} 36. Rd5 {[%emt 0:00:52]} f6 {[%emt 0:00:31]} 37. Kg2 {[%emt 0:00:09]} Rc8 {[%emt 0:00:11]} 38. Rc5 {[%emt 0:00:04]} Kf7 {[%emt 0:00:54]} 39. Nd2 {[%emt 0:00:02]} e3 {[%emt 0:00:12]} 40. Nc4 {[%emt 0:00:56]} Bd4 {[%emt 0:04:19]} 0-1

[Event "1st SOA-GM Festival 2024"]
[Site "Bhubaneswar"]
[Date "2024.02.01"]
[Round "7.8"]
[White "Nilssen, Ellen Fredericia"]
[Black "Fawzy, Adham"]
[Result "0-1"]
[ECO "B31"]
[WhiteElo "2184"]
[BlackElo "2522"]
[Annotator "ChessBase"]
[PlyCount "90"]
[EventDate "2024.02.01"]
[EventType "swiss"]
[EventCountry "IND"]
[SourceTitle "playchess.com"]
[Source "ChessBase"]
[SourceQuality "1"]
[TimeControl "5400+30"]

1. e4 {[%emt 0:00:04]} c5 {[%emt 0:01:12]} 2. Nf3 {[%emt 0:00:06]} Nc6 {[%emt 0:00:13]} 3. Bb5 {[%emt 0:00:20]} g6 {[%emt 0:00:19]} 4. O-O {[%emt 0:00:45]} Bg7 {[%emt 0:00:56]} 5. c3 {[%emt 0:00:36]} Nf6 {[%emt 0:02:13]} 6. Re1 {[%emt 0:00:30]} O-O {[%emt 0:01:48]} 7. d4 {[%emt 0:00:25]} a6 {[%emt 0:01:41]} 8. Bxc6 {[%emt 0:03:11]} dxc6 {[%emt 0:00:42]} 9. Qc2 {[%emt 0:05:04]} cxd4 {[%emt 0:03:21]} 10. cxd4 {[%emt 0:00:19]} Bg4 {[%emt 0:00:24]} 11. Nbd2 {[%emt 0:03:54]} e5 {[%emt 0:01:44]} 12. Nxe5 {[%emt 0:07:22]} Qxd4 {[%emt 0:04:00]} 13. Ndf3 {[%emt 0:00:27]} Qb4 {[%emt 0:03:51]} 14. Bd2 {[%emt 0:02:48]} Qb6 {[%emt 0:00:33]} 15. Be3 {[%emt 0:05:07]} Qc7 {[%emt 0:00:10]} 16. Bc5 {[%emt 0:00:19]} Rfd8 {[%emt 0:02:06]} 17. Rad1 {[%emt 0:07:28]} Be6 {[%emt 0:08:28]} 18. Nc4 {[%emt 0:01:27]} Rxd1 {[%emt 0:03:19]} 19. Rxd1 {[%emt 0:00:20]} Rd8 {[%emt 0:05:03]} 20. Bd6 {[%emt 0:13:13]} Qd7 {[%emt 0:01:00]} 21. Rd2 {[%emt 0:02:44]} Qe8 {[%emt 0:02:18]} 22. Bb4 {[%emt 0:09:48]} c5 {[%emt 0:15:27]} 23. Rxd8 {[%emt 0:02:19]} Qxd8 {[%emt 0:00:19]} 24. Ba5 {[%emt 0:00:08]} Qe8 {[%emt 0:05:19]} 25. Nfd2 {[%emt 0:07:09]} b5 {[%emt 0:07:25]} 26. Ne3 {[%emt 0:00:28]} Qc6 {[%emt 0:02:51]} 27. b3 {[%emt 0:00:46]} Nh5 {[%emt 0:06:55]} 28. Bb4 {[%emt 0:05:11]} Bf8 {[%emt 0:03:40]} 29. Nf3 {[%emt 0:06:04]} Nf6 {[%emt 0:04:58]} 30. Nd2 {[%emt 0:01:18]} Bc8 {[%emt 0:02:23]} 31. Bc3 {[%emt 0:03:56]} Bb7 {[%emt 0:00:01]} 32. f3 {[%emt 0:00:32]} Qd6 {[%emt 0:01:02]} 33. Ndf1 {[%emt 0:01:30]} Ne8 {[%emt 0:01:38]} 34. Ng3 {[%emt 0:04:58]} h5 {[%emt 0:00:36]} 35. Bb2 {[%emt 0:02:46]} Qb6 {[%emt 0:02:01]} 36. Kf1 {[%emt 0:01:30]} Bg7 {[%emt 0:01:50]} 37. Bxg7 {[%emt 0:00:42]} Nxg7 {[%emt 0:00:02]} 38. Qd2 {[%emt 0:00:08]} Qf6 {[%emt 0:01:27]} 39. Ne2 {[%emt 0:00:19]} Bxe4 {[%emt 0:00:46]} 40. Nc3 {[%emt 0:02:14]} Bb7 {[%emt 0:01:25]} 41. Ncd5 {[%emt 0:00:20]} Qd6 {[%emt 0:00:58]} 42. Ke2 {[%emt 0:00:53]} Kf8 {[%emt 0:00:45]} 43. g3 {[%emt 0:01:32]} Ne6 {[%emt 0:00:21]} 44. Nf4 {[%emt 0:00:56]} Bxf3+ {[%emt 0:00:21]} 45. Ke1 {[%emt 0:00:28]} Qxd2+ {[%emt 0:00:28]} 0-1

[Event "1st SOA-GM Festival 2024"]
[Site "Bhubaneswar"]
[Date "2024.02.01"]
[Round "7.9"]
[White "Ritviz, Parab"]
[Black "Rajesh, V A V"]
[Result "1/2-1/2"]
[ECO "C54"]
[WhiteElo "2391"]
[BlackElo "2331"]
[Annotator "ChessBase"]
[PlyCount "82"]
[EventDate "2024.02.01"]
[EventType "swiss"]
[EventCountry "IND"]
[SourceTitle "playchess.com"]
[Source "ChessBase"]
[SourceQuality "1"]
[TimeControl "5400+30"]

1. e4 {[%emt 0:00:11]} e5 {[%emt 0:00:18]} 2. Nf3 {[%emt 0:00:46]} Nc6 {[%emt 0:00:07]} 3. Bc4 {[%emt 0:00:57]} Bc5 {[%emt 0:00:08]} 4. O-O {[%emt 0:00:08]} Nf6 {[%emt 0:00:25]} 5. d3 {[%emt 0:00:13]} d6 {[%emt 0:00:08]} 6. c3 {[%emt 0:00:09]} h6 {[%emt 0:00:11]} 7. Re1 {[%emt 0:01:22]} Qe7 {[%emt 0:02:42]} 8. Nbd2 {[%emt 0:13:06]} a6 {[%emt 0:07:03]} 9. Nf1 {[%emt 0:10:43]} Be6 {[%emt 0:02:04]} 10. b4 {[%emt 0:14:22]} Ba7 {[%emt 0:01:02]} 11. Be3 {[%emt 0:00:17]} O-O {[%emt 0:02:44]} 12. Bxa7 {[%emt 0:00:41]} Nxa7 {[%emt 0:01:51]} 13. Ne3 {[%emt 0:04:46]} c6 {[%emt 0:00:22]} 14. Bb3 {[%emt 0:04:43]} Nb5 {[%emt 0:02:28]} 15. Bxe6 {[%emt 0:04:05]} Qxe6 {[%emt 1:16:27]} 16. a4 {[%emt 0:01:03]} Nc7 {[%emt 0:00:00]} 17. a5 {[%emt 0:02:26]} Rad8 {[%emt 0:00:00]} 18. Nc4 {[%emt 0:08:07]} Rfe8 {[%emt 0:00:00]} 19. Qd2 {[%emt 0:03:14]} Nh5 {[%emt 0:00:00]} 20. Nh4 {[%emt 0:03:55]} d5 {[%emt 0:00:00]} 21. exd5 {[%emt 0:04:26]} Qxd5 {[%emt 0:00:00]} 22. Rad1 {[%emt 0:00:56]} Nf4 {[%emt 0:00:00]} 23. Nxe5 {[%emt 0:00:28]} Rxe5 {[%emt 0:00:00]} 24. Qxf4 {[%emt 0:00:16]} Rxe1+ {[%emt 0:00:00]} 25. Rxe1 {[%emt 0:00:05]} Ne6 {[%emt 0:00:00]} 26. Qe3 {[%emt 0:08:24]} Qxd3 {[%emt 0:00:00]} 27. g3 {[%emt 0:00:25]} Qc4 {[%emt 0:00:00]} 28. Qe5 {[%emt 0:01:47]} Qd5 {[%emt 0:00:00]} 29. Nf5 {[%emt 0:00:50]} Qf3 {[%emt 0:00:00]} 30. Nh4 {[%emt 0:00:29]} Qd5 {[%emt 0:00:00]} 31. Nf5 {[%emt 0:00:07]} Qxe5 {[%emt 0:00:00]} 32. Rxe5 {[%emt 0:00:04]} Rd3 {[%emt 0:00:00]} 33. Re3 {[%emt 0:03:37]} Rd1+ {[%emt 0:00:00]} 34. Kg2 {[%emt 0:00:03]} Kf8 {[%emt 0:00:00]} 35. Re4 {[%emt 0:03:40]} Rd5 {[%emt 0:00:00]} 36. Nd4 {[%emt 0:01:48]} Ke7 {[%emt 0:00:00]} 37. Kf3 {[%emt 0:01:30]} c5 {[%emt 0:00:00]} 38. Nxe6 {[%emt 0:00:33]} fxe6 {[%emt 0:00:00]} 39. Ke3 {[%emt 0:02:39]} Kd6 {[%emt 0:00:00]} 40. h4 {[%emt 0:00:13]} cxb4 {[%emt 0:00:00]} 41. cxb4 {[%emt 0:00:04]} Ke7 {[%emt 0:00:00]} 1/2-1/2

[Event "1st SOA-GM Festival 2024"]
[Site "Bhubaneswar"]
[Date "2024.02.01"]
[Round "7.10"]
[White "John Veny Akkarakaran"]
[Black "Tologon tegin, Semetei"]
[Result "1/2-1/2"]
[ECO "B82"]
[WhiteElo "2112"]
[BlackElo "2384"]
[Annotator "ChessBase"]
[PlyCount "204"]
[EventDate "2024.02.01"]
[EventType "swiss"]
[EventCountry "IND"]
[SourceTitle "playchess.com"]
[Source "ChessBase"]
[SourceQuality "1"]
[TimeControl "5400+30"]

1. e4 {[%emt 0:00:40]} c5 {[%emt 0:00:03]} 2. Nf3 {[%emt 0:00:15]} e6 {[%emt 0:00:03]} 3. d4 {[%emt 0:00:12]} cxd4 {[%emt 0:00:06]} 4. Nxd4 {[%emt 0:00:14]} Nc6 {[%emt 0:00:02]} 5. Nc3 {[%emt 0:00:35]} Qc7 {[%emt 0:00:08]} 6. Be3 {[%emt 0:00:55]} a6 {[%emt 0:00:07]} 7. a3 {[%emt 0:00:50]} Nf6 {[%emt 0:00:29]} 8. f4 {[%emt 0:01:06]} d6 {[%emt 0:00:11]} 9. Qf3 {[%emt 0:00:51]} Bd7 {[%emt 0:00:25]} 10. O-O-O {[%emt 0:02:49]} h5 {[%emt 0:00:31]} 11. h3 {[%emt 0:07:07]} Rc8 {[%emt 0:01:04]} 12. Bd3 {[%emt 0:05:54]} h4 {[%emt 0:02:42]} 13. Kb1 {[%emt 0:04:02]} b5 {[%emt 0:02:29]} 14. Nxc6 {[%emt 0:08:22]} Bxc6 {[%emt 0:00:46]} 15. Rhe1 {[%emt 0:03:49]} Qb7 {[%emt 0:04:44]} 16. Bd4 {[%emt 0:03:41]} Nd7 {[%emt 0:43:33]} 17. Nd5 {[%emt 0:10:15]} Nc5 {[%emt 0:02:24]} 18. Qg4 {[%emt 0:14:37]} Rh7 {[%emt 0:04:57]} 19. f5 {[%emt 0:07:46]} Nxd3 {[%emt 0:00:39]} 20. Rxd3 {[%emt 0:00:47]} e5 {[%emt 0:20:04]} 21. Bc3 {[%emt 0:01:59]} Bxd5 {[%emt 0:00:51]} 22. Rxd5 {[%emt 0:01:15]} Rc4 {[%emt 0:03:57]} 23. Red1 {[%emt 0:04:52]} Qc7 {[%emt 0:02:46]} 24. Qf3 {[%emt 0:05:17]} Be7 {[%emt 0:01:08]} 25. Qg4 {[%emt 0:01:41]} Kf8 {[%emt 0:01:24]} 26. R1d3 {[%emt 0:01:59]} Rh6 {[%emt 0:02:36]} 27. Bd2 {[%emt 0:02:29]} Rh8 {[%emt 0:01:18]} 28. Rc3 {[%emt 0:01:34]} Rxc3 {[%emt 0:02:42]} 29. Bxc3 {[%emt 0:00:04]} g6 {[%emt 0:01:16]} 30. f6 {[%emt 0:06:48]} Bxf6 {[%emt 0:00:16]} 31. Rxd6 {[%emt 0:00:15]} Kg7 {[%emt 0:00:46]} 32. Rxa6 {[%emt 0:00:56]} Rd8 {[%emt 0:01:30]} 33. Ba5 {[%emt 0:01:44]} Qc8 {[%emt 0:00:20]} 34. Bxd8 {[%emt 0:01:04]} Qxa6 {[%emt 0:00:04]} 35. Bxf6+ {[%emt 0:00:17]} Qxf6 {[%emt 0:00:02]} 36. Qe2 {[%emt 0:00:01]} Qc6 {[%emt 0:00:07]} 37. Kc1 {[%emt 0:01:15]} Qc5 {[%emt 0:00:08]} 38. c3 {[%emt 0:00:25]} f5 {[%emt 0:00:24]} 39. Kc2 {[%emt 0:00:30]} Kf6 {[%emt 0:01:40]} 40. Kb3 {[%emt 0:00:44]} Qc6 {[%emt 0:00:56]} 41. c4 {[%emt 0:00:30]} bxc4+ {[%emt 0:00:21]} 42. Qxc4 {[%emt 0:00:08]} Qb6+ {[%emt 0:00:53]} 43. Ka2 {[%emt 0:00:25]} Qf2 {[%emt 0:00:02]} 44. a4 {[%emt 0:00:51]} Qxg2 {[%emt 0:00:12]} 45. a5 {[%emt 0:00:17]} fxe4 {[%emt 0:00:55]} 46. Qc6+ {[%emt 0:00:43]} Kg5 {[%emt 0:00:40]} 47. a6 {[%emt 0:00:14]} Qd2 {[%emt 0:00:07]} 48. Qc5 {[%emt 0:00:53]} Kf4 {[%emt 0:01:11]} 49. a7 {[%emt 0:00:13]} Qd8 {[%emt 0:00:01]} 50. Qf2+ {[%emt 0:00:42]} Kg5 {[%emt 0:00:03]} 51. Qe3+ {[%emt 0:00:26]} Kf5 {[%emt 0:00:02]} 52. b4 {[%emt 0:00:24]} Qd5+ {[%emt 0:01:43]} 53. Ka3 {[%emt 0:00:24]} Qb7 {[%emt 0:00:32]} 54. b5 {[%emt 0:00:41]} g5 {[%emt 0:00:10]} 55. Kb4 {[%emt 0:00:29]} g4 {[%emt 0:00:10]} 56. Qf2+ {[%emt 0:00:24]} Kg5 {[%emt 0:00:01]} 57. Qe3+ {[%emt 0:00:12]} Kf5 {[%emt 0:00:00]} 58. hxg4+ {[%emt 0:00:47]} Kxg4 {[%emt 0:00:02]} 59. Qg1+ {[%emt 0:00:43]} Kf3 {[%emt 0:00:08]} 60. Qf1+ {[%emt 0:00:21]} Kg3 {[%emt 0:00:01]} 61. Qg1+ {[%emt 0:00:00]} Kf3 {[%emt 0:00:01]} 62. b6 {[%emt 0:00:15]} h3 {[%emt 0:00:17]} 63. Qf1+ {[%emt 0:00:12]} Kg3 {[%emt 0:00:00]} 64. Qg1+ {[%emt 0:00:01]} Kf3 {[%emt 0:00:01]} 65. Kc5 {[%emt 0:00:43]} Qe7+ {[%emt 0:01:54]} 66. Kb5 {[%emt 0:00:11]} Qd7+ {[%emt 0:00:35]} 67. Kc5 {[%emt 0:00:10]} Qe7+ {[%emt 0:00:09]} 68. Kd5 {[%emt 0:00:16]} Qd7+ {[%emt 0:00:37]} 69. Kxe5 {[%emt 0:00:28]} Qe7+ {[%emt 0:00:06]} 70. Kd5 {[%emt 0:00:27]} Qd7+ {[%emt 0:00:10]} 71. Kc5 {[%emt 0:00:36]} Qe7+ {[%emt 0:00:16]} 72. Kb5 {[%emt 0:01:48]} Qd7+ {[%emt 0:00:19]} 73. Ka5 {[%emt 0:00:36]} Qd5+ {[%emt 0:01:35]} 74. Kb4 {[%emt 0:00:12]} Qd2+ {[%emt 0:01:40]} 75. Kb5 {[%emt 0:00:45]} Qd7+ {[%emt 0:00:08]} 76. Kb4 {[%emt 0:00:29]} Qd2+ {[%emt 0:00:11]} 77. Kc5 {[%emt 0:00:13]} Qc3+ {[%emt 0:00:26]} 78. Kb5 {[%emt 0:00:16]} Qb3+ {[%emt 0:00:20]} 79. Kc5 {[%emt 0:00:08]} Qc3+ {[%emt 0:00:03]} 80. Kd5 {[%emt 0:00:11]} Qb3+ {[%emt 0:00:17]} 81. Kd6 {[%emt 0:00:08]} Qd3+ {[%emt 0:03:30]} 82. Kc6 {[%emt 0:00:07]} Qc4+ {[%emt 0:01:18]} 83. Qc5 {[%emt 0:00:28]} Qxc5+ {[%emt 0:00:36]} 84. Kxc5 {[%emt 0:00:03]} h2 {[%emt 0:00:02]} 85. a8=Q {[%emt 0:00:14]} h1=Q {[%emt 0:01:37]} 86. Qa3+ {[%emt 0:01:55]} Kf4 {[%emt 0:00:00]} 87. b7 {[%emt 0:00:17]} Qh8 {[%emt 0:00:23]} 88. Qb4 {[%emt 0:02:54]} Qb8 {[%emt 0:00:30]} 89. Qd2+ {[%emt 0:00:41]} Kf3 {[%emt 0:00:09]} 90. Qd1+ {[%emt 0:00:11]} Kf2 {[%emt 0:00:07]} 91. Qc2+ {[%emt 0:00:19]} Kf3 {[%emt 0:00:16]} 92. Qd1+ {[%emt 0:00:36]} Kf2 {[%emt 0:00:07]} 93. Kb6 {[%emt 0:00:17]} e3 {[%emt 0:00:17]} 94. Qd4 {[%emt 0:00:05]} Kf3 {[%emt 0:00:33]} 95. Qf6+ {[%emt 0:00:07]} Kg2 {[%emt 0:00:11]} 96. Qg5+ {[%emt 0:00:04]} Kf2 {[%emt 0:00:06]} 97. Qf5+ {[%emt 0:00:04]} Kg2 {[%emt 0:00:37]} 98. Qc2+ {[%emt 0:00:46]} Kf1 {[%emt 0:00:31]} 99. Qf5+ {[%emt 0:01:15]} Kg2 {[%emt 0:00:03]} 100. Qc8 {[%emt 0:00:25]} Qd6+ {[%emt 0:00:10]} 101. Qc6+ {[%emt 0:00:38]} Qxc6+ {[%emt 0:00:04]} 102. Kxc6 {[%emt 0:00:02]} e2 {[%emt 0:00:05]} 1/2-1/2

[Event "1st SOA-GM Festival 2024"]
[Site "Bhubaneswar"]
[Date "2024.02.01"]
[Round "7.11"]
[White "Vrashank Chouhan"]
[Black "Nguyen Van Huy"]
[Result "0-1"]
[ECO "E27"]
[WhiteElo "2046"]
[BlackElo "2364"]
[Annotator "ChessBase"]
[PlyCount "58"]
[EventDate "2024.02.01"]
[EventType "swiss"]
[EventCountry "IND"]
[SourceTitle "playchess.com"]
[Source "ChessBase"]
[SourceQuality "1"]
[TimeControl "5400+30"]

1. d4 {[%emt 0:00:19]} Nf6 {[%emt 0:00:20]} 2. c4 {[%emt 0:00:04]} e6 {[%emt 0:00:20]} 3. Nc3 {[%emt 0:00:05]} Bb4 {[%emt 0:00:08]} 4. f3 {[%emt 0:00:06]} O-O {[%emt 0:01:18]} 5. a3 {[%emt 0:00:35]} Bxc3+ {[%emt 0:01:15]} 6. bxc3 {[%emt 0:00:05]} Ne8 {[%emt 0:01:26]} 7. e4 {[%emt 0:00:16]} b6 {[%emt 0:01:12]} 8. h4 {[%emt 0:00:19]} Nc6 {[%emt 0:01:37]} 9. h5 {[%emt 0:00:37]} Ba6 {[%emt 0:02:27]} 10. h6 {[%emt 0:00:59]} g6 {[%emt 0:00:16]} 11. Qa4 {[%emt 0:06:06]} Na5 {[%emt 0:00:59]} 12. c5 {[%emt 0:05:55]} Bxf1 {[%emt 0:01:36]} 13. Kxf1 {[%emt 1:21:34]} d5 {[%emt 0:04:54]} 14. exd5 {[%emt 0:00:00]} Qxd5 {[%emt 0:05:02]} 15. Ne2 {[%emt 0:00:00]} Nf6 {[%emt 0:10:42]} 16. Bf4 {[%emt 0:00:00]} Qc4 {[%emt 0:03:19]} 17. Qxc4 {[%emt 0:00:00]} Nxc4 {[%emt 0:01:58]} 18. Bxc7 {[%emt 0:00:00]} bxc5 {[%emt 0:00:58]} 19. Bg3 {[%emt 0:00:00]} cxd4 {[%emt 0:04:30]} 20. cxd4 {[%emt 0:00:00]} Nd5 {[%emt 0:00:55]} 21. Kf2 {[%emt 0:00:00]} Rfc8 {[%emt 0:01:33]} 22. Rhc1 {[%emt 0:00:00]} f6 {[%emt 0:00:55]} 23. Rcb1 {[%emt 0:00:00]} Ncb6 {[%emt 0:02:54]} 24. Rb2 {[%emt 0:00:00]} Rc6 {[%emt 0:04:50]} 25. Raa2 {[%emt 0:00:00]} Kf7 {[%emt 0:01:47]} 26. Rc2 {[%emt 0:00:00]} Rac8 {[%emt 0:01:36]} 27. Rxc6 {[%emt 0:00:00]} Rxc6 {[%emt 0:00:02]} 28. Rb2 {[%emt 0:00:00]} g5 {[%emt 0:00:59]} 29. Rb5 {[%emt 0:00:00]} Rc2 {[%emt 0:01:08]} 0-1

[Event "1st SOA-GM Festival 2024"]
[Site "Bhubaneswar"]
[Date "2024.02.01"]
[Round "7.12"]
[White "Jake Shanty"]
[Black "Gonzales, Jayson"]
[Result "1/2-1/2"]
[ECO "A27"]
[WhiteElo "1903"]
[BlackElo "2367"]
[Annotator "ChessBase"]
[PlyCount "66"]
[EventDate "2024.02.01"]
[EventType "swiss"]
[EventCountry "IND"]
[SourceTitle "playchess.com"]
[Source "ChessBase"]
[SourceQuality "1"]
[TimeControl "5400+30"]

1. Nf3 {[%emt 0:00:05]} g6 {[%emt 0:00:40]} 2. d4 {[%emt 0:02:01]} Bg7 {[%emt 0:00:09]} 3. c4 {[%emt 0:07:05]} d6 {[%emt 0:00:38]} 4. g3 {[%emt 0:03:19]} e5 {[%emt 0:02:56]} 5. Nc3 {[%emt 0:03:23]} exd4 {[%emt 0:02:13]} 6. Nxd4 {[%emt 0:00:35]} Nc6 {[%emt 0:03:16]} 7. Nxc6 {[%emt 0:16:41]} bxc6 {[%emt 0:00:06]} 8. Bg2 {[%emt 0:00:10]} Ne7 {[%emt 0:00:31]} 9. Bg5 {[%emt 0:01:52]} f6 {[%emt 0:07:31]} 10. Be3 {[%emt 0:00:59]} Be6 {[%emt 0:02:01]} 11. O-O {[%emt 0:10:48]} Qd7 {[%emt 0:04:47]} 12. Qd3 {[%emt 0:16:09]} Bh3 {[%emt 0:18:10]} 13. Qe4 {[%emt 0:17:25]} a5 {[%emt 0:11:41]} 14. b3 {[%emt 0:09:09]} Kf7 {[%emt 0:06:41]} 15. Rad1 {[%emt 0:02:05]} Rhe8 {[%emt 0:03:24]} 16. Bxh3 {[%emt 0:01:07]} Qxh3 {[%emt 0:00:09]} 17. Qg2 {[%emt 0:00:08]} Qe6 {[%emt 0:11:18]} 18. Rd3 {[%emt 0:01:20]} Ra6 {[%emt 0:03:59]} 19. Bc1 {[%emt 0:00:49]} f5 {[%emt 0:01:15]} 20. Re1 {[%emt 0:01:26]} Ng8 {[%emt 0:01:50]} 21. Re3 {[%emt 0:02:32]} Qd7 {[%emt 0:00:39]} 22. Rxe8 {[%emt 0:00:15]} Qxe8 {[%emt 0:00:15]} 23. Bd2 {[%emt 0:00:17]} Bxc3 {[%emt 0:02:25]} 24. Bxc3 {[%emt 0:00:06]} Qe4 {[%emt 0:00:03]} 25. Qxe4 {[%emt 0:01:23]} fxe4 {[%emt 0:00:01]} 26. f3 {[%emt 0:00:49]} exf3 {[%emt 0:00:02]} 27. exf3 {[%emt 0:00:11]} c5 {[%emt 0:00:39]} 28. Re4 {[%emt 0:01:30]} a4 {[%emt 0:01:24]} 29. Rh4 {[%emt 0:00:33]} h5 {[%emt 0:00:44]} 30. Rf4+ {[%emt 0:00:30]} Ke7 {[%emt 0:00:34]} 31. Re4+ {[%emt 0:00:21]} Kf7 {[%emt 0:01:35]} 32. Rf4+ {[%emt 0:00:11]} Ke7 {[%emt 0:00:22]} 33. Re4+ {[%emt 0:00:28]} Kf7 {[%emt 0:00:12]} 1/2-1/2